[Event "Turkish Cup 2024"]
[Site "Denizli"]
[Date "2024.08.04"]
[Round "8"]
[White "Tahaoglu, Erkin"]
[Black "Sahin, Ata Sarp"]
[Result "1/2-1/2"]
[ECO "D35"]
[WhiteElo "1916"]
[BlackElo "1996"]
[Annotator "RC"]
[PlyCount "165"]
[EventDate "2024.08.01"]
[EventType "swiss"]
[EventCountry "TUR"]
[SourceTitle "playchess.com"]
[Source "ChessBase"]
[SourceQuality "1"]
[TimeControl "5400+30"]

1. d4 {[%emt 0:01:00]} Nf6 {[%emt 0:01:00]} 2. Nf3 {[%emt 0:00:30]} d5 {[%emt 0:00:00]} 3. c4 {[%emt 0:00:00]} e6 {[%emt 0:00:00]} 4. cxd5 {[%emt 0:00:00]} exd5 {[%emt 0:00:30]} 5. Qc2 {[%emt 0:00:00]} Bd6 {[%emt 0:00:30]} 6. Nc3 {[%emt 0:01:00]} c6 {[%emt 0:00:30]} 7. Bg5 {[%emt 0:00:30]} O-O {[%emt 0:05:30]} 8. e3 {[%emt 0:00:00]} Re8 {[%emt 0:00:00]} 9. Bd3 {[%emt 0:01:00]} h6 {[%emt 0:00:00]} 10. Bh4 {[%emt 0:00:00]} a5 {[%emt 0:03:30]} 11. O-O {[%emt 0:02:00]} Bg4 {[%emt 0:01:30]} 12. Nd2 {[%emt 0:00:30]} Na6 {[%emt 0:07:30]} 13. a3 {[%emt 0:04:30]} g5 {[%emt 0:05:30]} 14. Bg3 {[%emt 0:01:30]} Bxg3 {[%emt 0:00:00]} 15. hxg3 {[%emt 0:00:30]} Qd6 {[%emt 0:02:00]} 16. Rfe1 {[%emt 0:06:30]} Kg7 {[%emt 0:04:30]} 17. Bf5 {[%emt 0:09:30]} Bh5 {[%emt 0:00:30]} 18. Nf3 {[%emt 0:04:30]} Bxf3 {[%emt 0:02:30]} 19. gxf3 {[%emt 0:00:30]} Nc7 {[%emt 0:03:30]} 20. Rad1 {[%emt 0:07:30]} Ne6 {[%emt 0:02:30]} 21. Bxe6 {[%emt 0:02:30]} Qxe6 {[%emt 0:00:30]} 22. Kg2 {[%emt 0:02:30]} g4 {[%emt 0:02:30]} 23. fxg4 {[%emt 0:01:30]} Qxg4 {[%emt 0:00:00]} 24. Rh1 {[%emt 0:02:30]} Re6 {[%emt 0:03:00]} 25. Ne2 {[%emt 0:09:30]} Qe4+ {[%emt 0:03:30]} 26. Qxe4 {[%emt 0:00:30]} Nxe4 {[%emt 0:00:30]} 27. Nf4 {[%emt 0:00:30]} Re7 {[%emt 0:00:30]} 28. g4 {[%emt 0:05:30]} a4 {[%emt 0:02:30]} 29. Nh5+ {[%emt 0:00:30]} Kg6 {[%emt 0:00:30]} 30. Nf4+ {[%emt 0:02:30]} Kg7 {[%emt 0:00:30]} 31. Rh2 {[%emt 0:00:30]} Rh8 {[%emt 0:03:30]} 32. Rdh1 {[%emt 0:01:30]} Ree8 {[%emt 0:04:30]} 33. Nh5+ {[%emt 0:02:30]} Kf8 {[%emt 0:01:30]} 34. Nf4 {[%emt 0:02:30]} Kg7 {[%emt 0:00:30]} 35. Ne2 {[%emt 0:00:30]} Nd6 {[%emt 0:00:30]} 36. Ng3 {[%emt 0:02:30]} Re6 {[%emt 0:03:30]} 37. Nh5+ {[%emt 0:00:30]} Kf8 {[%emt 0:00:30]} 38. Nf4 {[%emt 0:00:30]} Rf6 {[%emt 0:00:30]} 39. g5 {[%emt 0:00:30]} Rg8 {[%emt 0:00:30]} 40. Rxh6 {[%emt 0:00:30]} Rxg5+ {[%emt 0:00:30]} 41. Kf3 {[%emt 0:02:30]} Rxh6 {[%emt 0:00:30]} 42. Rxh6 {[%emt 0:00:30]} Nc4 {[%emt 0:00:00]} 43. Rh8+ {[%emt 0:00:30]} Kg7 {[%emt 0:01:00]} 44. Rb8 {[%emt 0:00:30]} b5 {[%emt 0:00:30]} 45. Nd3 {[%emt 0:01:30]} Rg1 {[%emt 0:00:30]} 46. Rc8 {[%emt 0:01:30]} Rd1 {[%emt 0:01:30]} 47. Ne5 {[%emt 0:00:30]} Nxb2 {[%emt 0:02:30]} 48. Rc7 {[%emt 0:01:30]} Nc4 {[%emt 0:00:30]} 49. Rxf7+ {[%emt 0:00:30]} Kg8 {[%emt 0:00:30]} 50. Rc7 {[%emt 0:00:30]} Nxa3 {[%emt 0:00:30]} 51. Nxc6 {[%emt 0:04:30]} Kf8 {[%emt 0:02:30]} 52. Kf4 {[%emt 0:01:17]} Rd2 {[%emt 0:00:30]} 53. Ke5 {[%emt 0:00:43]} Nc4+ {[%emt 0:02:30]} 54. Kxd5 {[%emt 0:01:07]} a3 {[%emt 0:00:30]} 55. Ra7 {[%emt 0:00:51]} Rxf2 {[%emt 0:01:30]} 56. e4 {[%emt 0:00:57]} Nb6+ {[%emt 0:01:30]} 57. Kc5 {[%emt 0:02:05]} Na4+ {[%emt 0:00:00]} 58. Kxb5 {[%emt 0:00:00]} Nc3+ {[%emt 0:02:00]} 59. Kc4 {[%emt 0:00:15]} Nxe4 {[%emt 0:00:30]} 60. Rxa3 {[%emt 0:00:30]} Rc2+ {[%emt 0:00:30]} 61. Kd5 {[%emt 0:01:15]} Nf6+ {[%emt 0:01:30]} 62. Kd6 {[%emt 0:00:09]} Ne8+ {[%emt 0:00:30]} 63. Kd7 {[%emt 0:00:19]} Nf6+ {[%emt 0:00:30]} 64. Kc7 {[%emt 0:00:45]} Nd5+ {[%emt 0:00:30]} 65. Kd6 {[%emt 0:00:00]} Nc3 {[%emt 0:01:30]} 66. Ra8+ {[%emt 0:00:45]} Kf7 {[%emt 0:00:00]} 67. Ne5+ {[%emt 0:00:00]} Kg7 {[%emt 0:00:00]} 68. Ke6 {[%emt 0:00:19]} Nb5 {[%emt 0:00:30]} 69. Rd8 {[%emt 0:00:46]} Nxd4+ {[%emt 0:00:30]} 70. Rxd4 {[%emt 0:00:15]} Re2 {[%emt 0:00:30]} 71. Rg4+ {[%emt 0:01:01]} Kf8 {[%emt 0:00:30]} 72. Ra4 {[%emt 0:03:05]} Re1 {[%emt 0:00:30]} 73. Ra8+ {[%emt 0:00:59]} Kg7 {[%emt 0:00:00]} 74. Ra2 {[%emt 0:00:19]} Re3 {[%emt 0:00:00]} 75. Rf2 {[%emt 0:00:06]} Re1 {[%emt 0:00:30]} 76. Kf5 {[%emt 0:01:02]} Rg1 {[%emt 0:00:30]} 77. Rd2 {[%emt 0:02:04]} Rf1+ {[%emt 0:00:00]} 78. Kg5 {[%emt 0:00:00]} Rg1+ {[%emt 0:00:00]} 79. Ng4 {[%emt 0:00:14]} Kf7 {[%emt 0:00:30]} 80. Re2 {[%emt 0:00:42]} Rg3 {[%emt 0:00:30]} 81. Kf5 {[%emt 0:00:30]} Rf3+ {[%emt 0:00:00]} 82. Ke5 {[%emt 0:00:00]} Rf1 {[%emt 0:00:00]} 83. Rf2+ {[%emt 0:01:14]} 1/2-1/2

[Event "Turkish Cup 2024"]
[Site "Denizli"]
[Date "2024.08.04"]
[Round "8"]
[White "Demirag, Batuhan"]
[Black "Cetin, Eralp"]
[Result "1-0"]
[ECO "B10"]
[WhiteElo "1912"]
[BlackElo "1734"]
[Annotator "RC"]
[PlyCount "49"]
[EventDate "2024.08.01"]
[EventType "swiss"]
[EventCountry "TUR"]
[SourceTitle "playchess.com"]
[Source "ChessBase"]
[SourceQuality "1"]
[TimeControl "5400+30"]

1. Nf3 {[%emt 0:01:00]} d5 {[%emt 0:01:00]} 2. g3 {[%emt 0:00:00]} g6 {[%emt 0:00:30]} 3. Bg2 {[%emt 0:00:00]} Bg7 {[%emt 0:00:30]} 4. O-O {[%emt 0:00:30]} e5 {[%emt 0:00:30]} 5. d3 {[%emt 0:00:30]} Ne7 {[%emt 0:01:30]} 6. Nbd2 {[%emt 0:00:30]} O-O {[%emt 0:00:30]} 7. e4 {[%emt 0:01:30]} c6 {[%emt 0:02:30]} 8. Re1 {[%emt 0:03:30]} Nd7 {[%emt 0:01:30]} 9. exd5 {[%emt 0:04:30]} cxd5 {[%emt 0:00:30]} 10. c4 {[%emt 0:00:00]} dxc4 {[%emt 0:03:30]} 11. Nxc4 {[%emt 0:04:00]} Nc6 {[%emt 0:00:30]} 12. Be3 {[%emt 0:03:30]} Qc7 {[%emt 0:03:30]} 13. Rc1 {[%emt 0:00:30]} Re8 {[%emt 0:06:30]} 14. b4 {[%emt 0:07:30]} Qb8 {[%emt 0:04:30]} 15. b5 {[%emt 0:01:30]} Nb4 {[%emt 0:03:30]} 16. Ng5 {[%emt 0:04:30]} Nf6 {[%emt 0:07:30]} 17. Bc5 {[%emt 0:00:30]} Nxa2 {[%emt 0:07:30]} 18. Rc2 {[%emt 0:04:30]} Bg4 {[%emt 0:02:30]} 19. f3 {[%emt 0:00:30]} Nd7 {[%emt 0:01:30]} 20. Bd6 {[%emt 0:03:30]} Qd8 {[%emt 0:00:30]} 21. fxg4 {[%emt 0:01:30]} Qxg5 {[%emt 0:00:30]} 22. Rxa2 {[%emt 0:00:00]} e4 {[%emt 0:00:30]} 23. Bxe4 {[%emt 0:01:00]} Qxb5 {[%emt 0:01:30]} 24. Ra5 {[%emt 0:01:30]} Bd4+ {[%emt 0:00:00]} 25. Kg2 {[%emt 0:00:30]} 1-0

[Event "Turkish Cup 2024"]
[Site "Denizli"]
[Date "2024.08.04"]
[Round "8"]
[White "Dirikolu, Deniz"]
[Black "Adiguzel, Hakan"]
[Result "1/2-1/2"]
[ECO "B40"]
[WhiteElo "1911"]
[BlackElo "1821"]
[Annotator "RC"]
[PlyCount "31"]
[EventDate "2024.08.01"]
[EventType "swiss"]
[EventCountry "TUR"]
[SourceTitle "playchess.com"]
[Source "ChessBase"]
[SourceQuality "1"]
[TimeControl "5400+30"]

1. e4 {[%emt 0:01:00]} c5 {[%emt 0:04:00]} 2. Nf3 {[%emt 0:00:30]} e6 {[%emt 0:00:30]} 3. b3 {[%emt 0:00:30]} Nc6 {[%emt 0:00:30]} 4. Bb2 {[%emt 0:00:30]} Nf6 {[%emt 0:00:00]} 5. e5 {[%emt 0:01:30]} Nd5 {[%emt 0:00:00]} 6. c4 {[%emt 0:03:30]} Nde7 {[%emt 0:07:30]} 7. Qe2 {[%emt 0:31:30]} Nf5 {[%emt 0:01:30]} 8. Nc3 {[%emt 0:04:30]} d6 {[%emt 0:12:30]} 9. Qe4 {[%emt 0:05:30]} Nfd4 {[%emt 0:10:30]} 10. Nb5 {[%emt 0:11:30]} d5 {[%emt 0:17:30]} 11. cxd5 {[%emt 0:00:30]} exd5 {[%emt 0:00:00]} 12. Qf4 {[%emt 0:00:30]} Nc2+ {[%emt 0:07:00]} 13. Kd1 {[%emt 0:00:00]} Nxa1 {[%emt 0:00:00]} 14. e6 {[%emt 0:00:00]} Bxe6 {[%emt 0:01:00]} 15. Nc7+ {[%emt 0:00:30]} Kd7 {[%emt 0:00:00]} 16. Nxa8 {[%emt 0:00:00]} 1/2-1/2

[Event "Turkish Cup 2024"]
[Site "Denizli"]
[Date "2024.08.04"]
[Round "8"]
[White "Kilic, Ihsan"]
[Black "Gulbas, Isa"]
[Result "1-0"]
[ECO "A46"]
[WhiteElo "1911"]
[BlackElo "1749"]
[Annotator "RC"]
[PlyCount "79"]
[EventDate "2024.08.01"]
[EventType "swiss"]
[EventCountry "TUR"]
[SourceTitle "playchess.com"]
[Source "ChessBase"]
[SourceQuality "1"]
[TimeControl "5400+30"]

1. d4 {[%emt 0:01:00]} Nf6 {[%emt 0:05:00]} 2. Nf3 {[%emt 0:01:30]} e6 {[%emt 0:00:30]} 3. g3 {[%emt 0:00:30]} b5 {[%emt 0:00:30]} 4. Bg2 {[%emt 0:00:30]} Bb7 {[%emt 0:00:30]} 5. O-O {[%emt 0:00:00]} Be7 {[%emt 0:00:00]} 6. b3 {[%emt 0:00:00]} c5 {[%emt 0:08:00]} 7. Bb2 {[%emt 0:02:30]} O-O {[%emt 0:00:30]} 8. Nbd2 {[%emt 0:01:30]} Qc7 {[%emt 0:05:30]} 9. c4 {[%emt 0:02:30]} b4 {[%emt 0:01:30]} 10. Qc2 {[%emt 0:02:30]} cxd4 {[%emt 0:02:30]} 11. Bxd4 {[%emt 0:02:30]} Nc6 {[%emt 0:04:30]} 12. Bb2 {[%emt 0:01:30]} e5 {[%emt 0:04:30]} 13. Nxe5 {[%emt 0:03:30]} Nxe5 {[%emt 0:00:30]} 14. Bxe5 {[%emt 0:03:30]} Qxe5 {[%emt 0:00:30]} 15. Bxb7 {[%emt 0:00:00]} Rad8 {[%emt 0:01:30]} 16. Bg2 {[%emt 0:03:00]} d5 {[%emt 0:01:30]} 17. cxd5 {[%emt 0:02:30]} Nxd5 {[%emt 0:00:30]} 18. Bxd5 {[%emt 0:00:30]} Rxd5 {[%emt 0:00:30]} 19. Nc4 {[%emt 0:00:30]} Qh5 {[%emt 0:02:30]} 20. Rad1 {[%emt 0:08:30]} Rfd8 {[%emt 0:00:00]} 21. Rxd5 {[%emt 0:00:00]} Rxd5 {[%emt 0:04:00]} 22. e4 {[%emt 0:02:00]} Rg5 {[%emt 0:11:30]} 23. Ne3 {[%emt 0:02:30]} Rc5 {[%emt 0:05:30]} 24. Qd2 {[%emt 0:02:30]} a5 {[%emt 0:04:30]} 25. Qd7 {[%emt 0:04:30]} Bf8 {[%emt 0:05:30]} 26. Rd1 {[%emt 0:02:30]} Qe5 {[%emt 0:02:30]} 27. Qb7 {[%emt 0:05:30]} g6 {[%emt 0:04:30]} 28. Qa8 {[%emt 0:01:30]} Kg7 {[%emt 0:06:56]} 29. Rd8 {[%emt 0:01:30]} Qe7 {[%emt 0:00:30]} 30. Nc4 {[%emt 0:04:30]} a4 {[%emt 0:02:57]} 31. Re8 {[%emt 0:02:30]} Rxc4 {[%emt 0:00:08]} 32. bxc4 {[%emt 0:01:30]} Qc5 {[%emt 0:00:46]} 33. Qd5 {[%emt 0:02:30]} Qb6 {[%emt 0:00:57]} 34. Qe5+ {[%emt 0:01:30]} f6 {[%emt 0:00:08]} 35. Qb8 {[%emt 0:01:30]} Qc5 {[%emt 0:01:36]} 36. Rc8 {[%emt 0:01:30]} Qd6 {[%emt 0:00:21]} 37. Qb7+ {[%emt 0:02:30]} Kh6 {[%emt 0:00:19]} 38. Rc7 {[%emt 0:00:00]} b3 {[%emt 0:00:31]} 39. Rxh7+ {[%emt 0:01:00]} Kg5 {[%emt 0:00:03]} 40. f4+ {[%emt 0:02:30]} 1-0

[Event "Turkish Cup 2024"]
[Site "Denizli"]
[Date "2024.08.04"]
[Round "8"]
[White "Topal, Hasan Gokmen"]
[Black "Ozdemir, Serhan Berat"]
[Result "1-0"]
[ECO "B23"]
[WhiteElo "1905"]
[BlackElo "2194"]
[Annotator "RC"]
[PlyCount "99"]
[EventDate "2024.08.01"]
[EventType "swiss"]
[EventCountry "TUR"]
[SourceTitle "playchess.com"]
[Source "ChessBase"]
[SourceQuality "1"]
[TimeControl "5400+30"]

1. e4 c5 2. Nc3 a6 3. g3 b5 4. Bg2 Bb7 5. Nge2 Nf6 6. Nd5 h5 7. h4 Nc6 8. Nxf6+ gxf6 9. Nf4 Qa5 10. O-O O-O-O 11. c3 Bh6 12. Nd5 e6 13. Nxf6 Bg7 14. Nxh5 Be5 15. d3 b4 16. Bf4 f6 17. Bxe5 fxe5 18. Nf6 bxc3 19. bxc3 Qxc3 20. Qb3 Qxb3 21. axb3 Nd4 22. Rfb1 Rdf8 23. Ng4 Kb8 24. Nxe5 Rh7 25. Ra2 d6 26. Nc4 Nb5 27. Rc1 Rd8 28. Ne3 Ka7 29. Kh2 Nd4 30. Rb2 Bc6 31. Nc2 Ne2 32. Nb4 cxb4 33. Rxe2 Kb6 34. Rec2 Be8 35. f4 a5 36. Ra1 e5 37. f5 Bf7 38. Rb1 Rg7 39. Bf3 Rh7 40. Kh3 Rdh8 41. Bd1 d5 42. Rbc1 Rh6 43. Rc7 Be8 44. Re7 Rc6 45. Rxc6+ Bxc6 46. Rxe5 Kc5 47. Re6 Rd8 48. d4+ Kb6 49. exd5 Rxd5 50. Bf3 1-0

[Event "Turkish Cup 2024"]
[Site "Denizli"]
[Date "2024.08.04"]
[Round "8"]
[White "Konusoglu, Kemal Safa"]
[Black "Akkaya, Atakan"]
[Result "1-0"]
[ECO "B26"]
[WhiteElo "1904"]
[BlackElo "1971"]
[Annotator "RC"]
[PlyCount "109"]
[EventDate "2024.08.01"]
[EventType "swiss"]
[EventCountry "TUR"]
[SourceTitle "playchess.com"]
[Source "ChessBase"]
[SourceQuality "1"]
[TimeControl "5400+30"]

1. e4 {[%emt 0:03:00]} c5 {[%emt 0:02:00]} 2. Nc3 {[%emt 0:00:00]} e6 {[%emt 0:00:30]} 3. g3 {[%emt 0:00:00]} Nc6 {[%emt 0:00:30]} 4. Bg2 {[%emt 0:00:30]} g6 {[%emt 0:00:00]} 5. d3 {[%emt 0:00:30]} Bg7 {[%emt 0:00:00]} 6. Be3 {[%emt 0:00:00]} d6 {[%emt 0:01:30]} 7. Qd2 {[%emt 0:00:00]} Rb8 {[%emt 0:01:30]} 8. Nge2 {[%emt 0:00:00]} b6 {[%emt 0:03:30]} 9. O-O {[%emt 0:00:00]} Nge7 {[%emt 0:01:30]} 10. Bh6 {[%emt 0:01:30]} O-O {[%emt 0:00:30]} 11. Bxg7 {[%emt 0:00:30]} Kxg7 {[%emt 0:00:30]} 12. d4 {[%emt 0:01:30]} Ba6 {[%emt 0:08:30]} 13. Rfe1 {[%emt 0:02:30]} e5 {[%emt 0:06:30]} 14. dxe5 {[%emt 0:02:30]} dxe5 {[%emt 0:00:30]} 15. Nd5 {[%emt 0:00:30]} Bxe2 {[%emt 0:06:30]} 16. Qxe2 {[%emt 0:00:30]} Nd4 {[%emt 0:00:00]} 17. Qd1 {[%emt 0:02:30]} Nxd5 {[%emt 0:04:00]} 18. exd5 {[%emt 0:00:30]} Re8 {[%emt 0:00:30]} 19. Qd2 {[%emt 0:04:30]} f5 {[%emt 0:06:30]} 20. Rad1 {[%emt 0:06:30]} e4 {[%emt 0:02:30]} 21. c3 {[%emt 0:01:30]} Nb5 {[%emt 0:00:30]} 22. f3 {[%emt 0:05:30]} Nd6 {[%emt 0:06:30]} 23. Re2 {[%emt 0:12:30]} exf3 {[%emt 0:05:30]} 24. Rxe8 {[%emt 0:01:30]} Qxe8 {[%emt 0:03:30]} 25. Bxf3 {[%emt 0:00:30]} Qd7 {[%emt 0:05:30]} 26. b4 {[%emt 0:10:30]} Re8 {[%emt 0:08:30]} 27. bxc5 {[%emt 0:00:30]} bxc5 {[%emt 0:00:00]} 28. Re1 {[%emt 0:00:00]} Nc4 {[%emt 0:07:00]} 29. Qd1 {[%emt 0:04:00]} Re7 {[%emt 0:00:30]} 30. Kf2 {[%emt 0:11:30]} Qe8 {[%emt 0:01:30]} 31. Rxe7+ {[%emt 0:03:30]} Qxe7 {[%emt 0:00:01]} 32. Qd3 {[%emt 0:00:30]} Ne5 {[%emt 0:05:45]} 33. Qe2 {[%emt 0:05:30]} Qd6 {[%emt 0:00:29]} 34. h3 {[%emt 0:02:57]} Nf7 {[%emt 0:00:31]} 35. Qb5 {[%emt 0:02:06]} Ng5 {[%emt 0:02:00]} 36. Qb7+ {[%emt 0:03:37]} Kf6 {[%emt 0:01:48]} 37. h4 {[%emt 0:01:06]} Nf7 {[%emt 0:06:51]} 38. Qxa7 {[%emt 0:00:30]} Ne5 {[%emt 0:00:00]} 39. Qb7 {[%emt 0:01:01]} Nd3+ {[%emt 0:00:33]} 40. Ke3 {[%emt 0:01:40]} Ne5 {[%emt 0:00:34]} 41. a4 {[%emt 0:00:56]} Nc4+ {[%emt 0:02:02]} 42. Kf2 {[%emt 0:00:20]} Qe7 {[%emt 0:01:03]} 43. Qa6+ {[%emt 0:02:23]} Nd6 {[%emt 0:00:30]} 44. Qc6 {[%emt 0:00:00]} f4 {[%emt 0:00:00]} 45. gxf4 {[%emt 0:00:53]} Kf5 {[%emt 0:00:00]} 46. Kg2 {[%emt 0:03:02]} Nc4 {[%emt 0:02:35]} 47. Qc8+ {[%emt 0:02:10]} Kf6 {[%emt 0:00:23]} 48. Qa6+ {[%emt 0:00:39]} Nd6 {[%emt 0:00:30]} 49. a5 {[%emt 0:00:00]} Kf5 {[%emt 0:00:00]} 50. Qe2 {[%emt 0:01:47]} Qxe2+ {[%emt 0:02:55]} 51. Bxe2 {[%emt 0:00:30]} Nc8 {[%emt 0:00:00]} 52. a6 {[%emt 0:01:04]} Kf6 {[%emt 0:00:00]} 53. Bg4 {[%emt 0:00:30]} Na7 {[%emt 0:00:00]} 54. Kf3 {[%emt 0:00:17]} Nb5 {[%emt 0:00:08]} 55. d6 {[%emt 0:01:24]} 1-0

[Event "Turkish Cup 2024"]
[Site "Denizli"]
[Date "2024.08.04"]
[Round "8"]
[White "Cakir, Ege"]
[Black "Herdem, Talha"]
[Result "1-0"]
[ECO "A46"]
[WhiteElo "1889"]
[BlackElo "1911"]
[Annotator "RC"]
[PlyCount "89"]
[EventDate "2024.08.01"]
[EventType "swiss"]
[EventCountry "TUR"]
[SourceTitle "playchess.com"]
[Source "ChessBase"]
[SourceQuality "1"]
[TimeControl "5400+30"]

1. d4 {[%emt 0:03:00]} Nf6 {[%emt 0:06:00]} 2. Nf3 {[%emt 0:00:00]} e6 {[%emt 0:00:00]} 3. Bg5 {[%emt 0:02:00]} c5 {[%emt 0:06:00]} 4. Bxf6 {[%emt 0:00:30]} Qxf6 {[%emt 0:00:30]} 5. e3 {[%emt 0:00:30]} Nc6 {[%emt 0:05:30]} 6. c3 {[%emt 0:00:30]} d5 {[%emt 0:00:30]} 7. Nbd2 {[%emt 0:00:30]} Bd6 {[%emt 0:01:30]} 8. Bd3 {[%emt 0:00:30]} O-O {[%emt 0:00:30]} 9. O-O {[%emt 0:00:00]} e5 {[%emt 0:01:30]} 10. e4 {[%emt 0:08:00]} Be6 {[%emt 0:06:30]} 11. dxe5 {[%emt 0:09:30]} Bxe5 {[%emt 0:10:30]} 12. exd5 {[%emt 0:09:30]} Bxd5 {[%emt 0:00:00]} 13. Qc2 {[%emt 0:06:30]} Qh6 {[%emt 0:11:00]} 14. Rfe1 {[%emt 0:04:30]} Bc7 {[%emt 0:04:30]} 15. Be4 {[%emt 0:03:30]} Rad8 {[%emt 0:03:30]} 16. Rad1 {[%emt 0:02:30]} Be6 {[%emt 0:02:30]} 17. Bxc6 {[%emt 0:09:30]} bxc6 {[%emt 0:00:30]} 18. Nf1 {[%emt 0:00:30]} Bd5 {[%emt 0:03:30]} 19. N3d2 {[%emt 0:10:30]} c4 {[%emt 0:02:30]} 20. b3 {[%emt 0:02:30]} cxb3 {[%emt 0:02:30]} 21. axb3 {[%emt 0:00:00]} c5 {[%emt 0:00:30]} 22. c4 {[%emt 0:00:00]} Bc6 {[%emt 0:02:30]} 23. Nb1 {[%emt 0:05:30]} Qg5 {[%emt 0:02:30]} 24. Ng3 {[%emt 0:03:35]} f5 {[%emt 0:07:30]} 25. Rxd8 {[%emt 0:00:52]} Bxd8 {[%emt 0:00:30]} 26. Re5 {[%emt 0:03:33]} Bc7 {[%emt 0:05:00]} 27. Rxc5 {[%emt 0:01:29]} Bxg3 {[%emt 0:03:52]} 28. Rxc6 {[%emt 0:01:13]} Re8 {[%emt 0:01:53]} 29. Qd2 {[%emt 0:04:43]} Rd8 {[%emt 0:01:11]} 30. Qe1 {[%emt 0:03:00]} Bxh2+ {[%emt 0:02:22]} 31. Kf1 {[%emt 0:02:22]} Qh5 {[%emt 0:01:10]} 32. Nc3 {[%emt 0:00:24]} Bb8 {[%emt 0:03:19]} 33. Qe6+ {[%emt 0:00:51]} Qf7 {[%emt 0:03:31]} 34. Nd5 {[%emt 0:00:37]} Re8 {[%emt 0:01:11]} 35. Qxf7+ {[%emt 0:01:13]} Kxf7 {[%emt 0:00:30]} 36. b4 {[%emt 0:00:41]} Re6 {[%emt 0:00:15]} 37. Rc8 {[%emt 0:00:35]} Re8 {[%emt 0:00:29]} 38. Rc5 {[%emt 0:00:00]} g5 {[%emt 0:01:02]} 39. Rb5 {[%emt 0:00:54]} Rd8 {[%emt 0:00:59]} 40. Rb7+ {[%emt 0:00:30]} Kg6 {[%emt 0:00:30]} 41. Ne7+ {[%emt 0:00:00]} Kf6 {[%emt 0:00:12]} 42. Nc6 {[%emt 0:00:00]} Rd1+ {[%emt 0:00:47]} 43. Ke2 {[%emt 0:00:00]} Rc1 {[%emt 0:00:07]} 44. Nxb8 {[%emt 0:00:45]} Rxc4 {[%emt 0:00:34]} 45. Nd7+ {[%emt 0:00:34]} 1-0

[Event "Turkish Cup 2024"]
[Site "Denizli"]
[Date "2024.08.04"]
[Round "8"]
[White "Demirci, Fatih"]
[Black "Citil, Feyzullah"]
[Result "1-0"]
[ECO "C02"]
[WhiteElo "1885"]
[BlackElo "1720"]
[Annotator "NA COMBH"]
[PlyCount "95"]
[EventDate "2024.08.01"]
[EventType "swiss"]
[EventCountry "TUR"]
[SourceTitle "playchess.com"]
[Source "ChessBase"]
[SourceQuality "1"]
[TimeControl "5400+30"]

1. e4 {[%emt 0:01:00]} c6 {[%emt 0:15:00]} 2. d4 {[%emt 0:00:30]} d5 {[%emt 0:00:00]} 3. f3 {[%emt 0:00:30]} e6 {[%emt 0:03:00]} 4. e5 {[%emt 0:01:30]} c5 {[%emt 0:09:30]} 5. c3 {[%emt 0:00:30]} cxd4 {[%emt 0:07:30]} 6. cxd4 {[%emt 0:00:30]} Nc6 {[%emt 0:00:30]} 7. f4 {[%emt 0:03:30]} Qb6 {[%emt 0:01:30]} 8. Nf3 {[%emt 0:00:30]} Nh6 {[%emt 0:00:30]} 9. Bd3 {[%emt 0:01:30]} Bd7 {[%emt 0:01:30]} 10. Bc2 {[%emt 0:04:30]} Nb4 {[%emt 0:02:30]} 11. Nc3 {[%emt 0:06:30]} Nxc2+ {[%emt 0:04:30]} 12. Qxc2 {[%emt 0:00:30]} Nf5 {[%emt 0:00:30]} 13. Qd3 {[%emt 0:01:30]} Bb4 {[%emt 0:00:30]} 14. a4 {[%emt 0:01:30]} Rc8 {[%emt 0:02:30]} 15. O-O {[%emt 0:02:30]} Qa5 {[%emt 0:05:30]} 16. Bd2 {[%emt 0:04:30]} Rc4 {[%emt 0:17:30]} 17. Kh1 {[%emt 0:04:30]} Qc7 {[%emt 0:01:30]} 18. Rfc1 {[%emt 0:05:30]} Bxc3 {[%emt 0:06:11]} 19. Rxc3 {[%emt 0:06:30]} Rxc3 {[%emt 0:05:57]} 20. Bxc3 {[%emt 0:03:30]} O-O {[%emt 0:03:59]} 21. g4 {[%emt 0:06:30]} Ne7 {[%emt 0:03:56]} 22. Bb4 {[%emt 0:02:30]} Re8 {[%emt 0:01:56]} 23. Bxe7 {[%emt 0:09:30]} Rxe7 {[%emt 0:00:02]} 24. Ng5 {[%emt 0:00:30]} f5 {[%emt 0:00:30]} 25. gxf5 {[%emt 0:00:30]} exf5 {[%emt 0:00:08]} 26. Kg2 {[%emt 0:07:30]} Qb6 {[%emt 0:00:44]} 27. b3 {[%emt 0:00:30]} h6 {[%emt 0:00:57]} 28. Nf3 {[%emt 0:00:30]} Re6 {[%emt 0:00:00]} 29. Kf2 {[%emt 0:01:30]} Rc6 {[%emt 0:00:55]} 30. Re1 {[%emt 0:09:51]} Qb4 {[%emt 0:00:45]} 31. Re3 {[%emt 0:00:20]} Be6 {[%emt 0:00:46]} 32. Qd2 {[%emt 0:00:34]} Qe7 {[%emt 0:01:23]} 33. Rc3 {[%emt 0:03:35]} Rxc3 {[%emt 0:02:20]} 34. Qxc3 {[%emt 0:00:30]} g5 {[%emt 0:00:00]} 35. Qc5 {[%emt 0:01:48]} Qxc5 {[%emt 0:02:30]} 36. dxc5 {[%emt 0:00:02]} gxf4 {[%emt 0:01:05]} 37. Nd4 {[%emt 0:00:03]} Bf7 {[%emt 0:00:06]} 38. Kf3 {[%emt 0:01:16]} Bh5+ {[%emt 0:00:20]} 39. Kxf4 {[%emt 0:00:30]} Kf7 {[%emt 0:00:11]} 40. Kxf5 {[%emt 0:01:01]} Bg6+ {[%emt 0:00:10]} 41. Kf4 {[%emt 0:00:51]} a6 {[%emt 0:00:13]} 42. b4 {[%emt 0:00:29]} Ke7 {[%emt 0:01:12]} 43. Ke3 {[%emt 0:01:01]} Be8 {[%emt 0:00:09]} 44. Nf5+ {[%emt 0:02:37]} Kf8 {[%emt 0:00:26]} 45. Kd4 {[%emt 0:00:00]} Bxa4 {[%emt 0:00:27]} 46. Kxd5 {[%emt 0:00:12]} Kf7 {[%emt 0:01:25]} 47. Nxh6+ {[%emt 0:01:16]} Kg6 {[%emt 0:00:33]} 48. Ng4 {[%emt 0:00:12]} 1-0

[Event "Turkish Cup 2024"]
[Site "Denizli"]
[Date "2024.08.04"]
[Round "8"]
[White "Eroglu, Berke"]
[Black "Avsar, Gediz"]
[Result "1/2-1/2"]
[ECO "A08"]
[WhiteElo "1873"]
[BlackElo "1880"]
[Annotator "NA RC"]
[PlyCount "44"]
[EventDate "2024.08.01"]
[EventType "swiss"]
[EventCountry "TUR"]
[SourceTitle "playchess.com"]
[Source "ChessBase"]
[SourceQuality "1"]
[TimeControl "5400+30"]

1. e4 {[%emt 0:03:00]} c5 {[%emt 0:01:00]} 2. d3 {[%emt 0:00:00]} Nc6 {[%emt 0:00:30]} 3. g3 {[%emt 0:00:00]} d5 {[%emt 0:00:00]} 4. Nd2 {[%emt 0:00:30]} Nf6 {[%emt 0:01:00]} 5. Bg2 {[%emt 0:01:30]} e5 {[%emt 0:00:30]} 6. Ngf3 {[%emt 0:01:30]} Be7 {[%emt 0:01:30]} 7. O-O {[%emt 0:00:30]} O-O {[%emt 0:00:30]} 8. exd5 {[%emt 0:01:30]} Nxd5 {[%emt 0:00:30]} 9. Re1 {[%emt 0:01:30]} f6 {[%emt 0:01:30]} 10. Nc4 {[%emt 0:03:30]} Be6 {[%emt 0:04:30]} 11. Nh4 {[%emt 0:03:30]} Qd7 {[%emt 0:07:30]} 12. Ne3 {[%emt 0:02:30]} Nxe3 {[%emt 0:04:30]} 13. Bxe3 {[%emt 0:03:30]} Rad8 {[%emt 0:01:30]} 14. Nf3 {[%emt 0:21:30]} Rfe8 {[%emt 0:04:30]} 15. Nd2 {[%emt 0:02:30]} Nd4 {[%emt 0:03:30]} 16. Nb3 {[%emt 0:01:30]} Bd5 {[%emt 0:05:30]} 17. Bxd5+ {[%emt 0:05:30]} Qxd5 {[%emt 0:00:30]} 18. Bxd4 {[%emt 0:02:30]} cxd4 {[%emt 0:00:30]} 19. Qg4 {[%emt 0:02:30]} g6 {[%emt 0:11:30]} 20. Qe4 {[%emt 0:03:30]} Bb4 {[%emt 0:10:30]} 21. Qxd5+ {[%emt 0:01:30]} Rxd5 {[%emt 0:00:30]} 22. Re2 {[%emt 0:00:00]} Rc8 {[%emt 0:07:30]} 1/2-1/2